fUST/lending_fUST_20250617
["ID","MTS","AMOUNT","RATE_DAILY","PERIOD"]
[366226682,1750137047094,-500.0,0.00020906,2]
[366226683,1750137047104,-500.0,0.00020906,2]
[366226684,1750137047114,-500.0,0.00020906,2]
[366226685,1750137047124,-500.0,0.00020906,2]
[366226686,1750137047133,-500.0,0.00020906,2]
[366226687,1750137047143,-500.0,0.00020906,2]
[366226688,1750137047152,-500.0,0.00020906,2]
[366226689,1750137047162,-500.0,0.00020906,2]
[366226690,1750137047172,-500.0,0.00020906,2]
[366226691,1750137047182,-500.0,0.00020906,2]
[366226692,1750137047191,-500.0,0.00020906,2]
[366226693,1750137047201,-500.0,0.00020906,2]
[366226694,1750137047211,-500.0,0.00020906,2]
[366226695,1750137047220,-500.0,0.00020906,2]
[366226696,1750137047230,-500.0,0.00020906,2]
[366226697,1750137047240,-500.0,0.00020906,2]
[366226698,1750137047249,-500.0,0.00020906,2]
[366226699,1750137047260,-500.0,0.00020906,2]
[366226700,1750137047269,-500.0,0.00020906,2]
[366226701,1750137047279,-500.0,0.00020906,2]
[366226702,1750137047288,-500.0,0.00020906,2]
[366226703,1750137047299,-500.0,0.00020906,2]
[366226704,1750137047308,-500.0,0.00020906,2]
[366226705,1750137047318,-500.0,0.00020906,2]
[366226706,1750137047328,-500.0,0.00020906,2]
[366226707,1750137047338,-500.0,0.00020906,2]
[366226708,1750137047347,-500.0,0.00020906,2]
[366226709,1750137047357,-500.0,0.00020906,2]
[366226710,1750137047367,-500.0,0.00020906,2]
[366226711,1750137047377,-500.0,0.00020906,2]
[366226712,1750137047387,-46.8215284,0.00022624,7]
[366226713,1750137047476,-226.37780622,0.00022624,7]
[366226714,1750137047486,-452.94946086,0.00022728,7]
[366226715,1750137047495,-420.0,0.00022743,2]
[366226716,1750137047504,-452.94946086,0.00022831,8]
[366226717,1750137047513,-452.94946086,0.00022934,8]
[366226718,1750137047523,-452.94946086,0.00023038,8]
[366226719,1750137047532,-208.3857422,0.00023041,2]
[366226720,1750137047542,-574.1078115,0.00023041,2]
[366226721,1750137047551,-177.1110308,0.00023041,2]
[366226722,1750137047560,-21.85858106,0.00023041,2]
[366226744,1750138100048,1000.0,0.00024,120]
[366226745,1750138102028,1000.0,0.00024,120]
[366226829,1750138231928,-461.4225,0.00020452,2]
[366226859,1750138232190,-223.21876395,0.00020452,2]
[366226861,1750138232200,-500.0,0.00021122,2]
[366226863,1750138232210,-1141.8,0.00021326,2]
[366226865,1750138232220,-179.471337,0.00021849,2]
[366226867,1750138232229,-300.0,0.00022546,2]
[366226869,1750138232239,-160.0,0.00022547,2]
[366226871,1750138232249,-424.62582665,0.00022547,2]
[366226872,1750138232259,-12540.12310952,0.00022547,2]
[366226874,1750138232270,-160.0,0.00022547,2]
[366226876,1750138232280,-835.82910252,0.00022548,2]
[366226877,1750138232290,-229.94211981,0.00022548,2]
[366226878,1750138232299,-357.8320148,0.000227,2]
[366226879,1750138232309,-386.26694834,0.000229,8]
[366226880,1750138232319,-386.26694834,0.00022969,8]
[366226881,1750138232329,-165.83873605,0.00023,2]
[366226882,1750138232340,-1112.49279317,0.00023,23]
[366226883,1750138232350,-386.26694834,0.00023038,8]
[366226884,1750138232360,-703.62996141,0.00023041,2]
[366226885,1750138232371,-170.71611155,0.00023041,2]
[366226886,1750138232380,-500.0,0.00023099,2]
[366226887,1750138232390,-500.0,0.00023099,2]
[366226888,1750138232399,-557.73893343,0.00023099,2]
[366226889,1750138232409,-500.0,0.00023099,2]
[366226890,1750138232418,-500.0,0.00023099,2]
[366226891,1750138232428,-500.0,0.00023099,2]
[366226892,1750138232438,-500.0,0.00023099,2]
[366226893,1750138232450,-500.0,0.00023099,2]
[366226894,1750138232460,-500.0,0.00023099,2]
[366226895,1750138232469,-500.0,0.00023099,2]
[366226896,1750138232479,-500.0,0.00023099,2]
[366226897,1750138232490,-500.0,0.00023099,2]
[366226898,1750138232502,-500.0,0.00023099,2]
[366226899,1750138232512,-500.0,0.00023099,2]
[366226900,1750138232522,-500.0,0.00023099,2]
[366226901,1750138232532,-177.1110308,0.000231,2]
[366226902,1750138232542,-158.9615139,0.000231,2]
[366226903,1750138232551,-574.1078115,0.000231,2]
[366226904,1750138232561,-177.1110308,0.000231,2]
[366226905,1750138232570,-574.1078115,0.000231,2]
[366226906,1750138232579,-153.0,0.000231,2]
[366226907,1750138232588,-158.9615139,0.000231,2]
[366226908,1750138232598,-153.0,0.000231,2]
[366226909,1750138232608,-177.1110308,0.000231,2]
[366226910,1750138232618,-158.9615139,0.000231,2]
[366226911,1750138232627,-574.1078115,0.000231,2]
[366226912,1750138232637,-177.1110308,0.000231,2]
[366226913,1750138232647,-153.0,0.000231,2]
[366226914,1750138232657,-574.1078115,0.000231,2]
[366226915,1750138232666,-158.9615139,0.000231,2]
[366226916,1750138232676,-153.0,0.000231,2]
[366226917,1750138232686,-177.1110308,0.000231,2]
[366226918,1750138232696,-158.9615139,0.000231,2]
[366226919,1750138232705,-574.1078115,0.000231,2]
[366226920,1750138232714,-524.44528285,0.000231,2]
[366226921,1750138232725,-177.1110308,0.000231,2]
[366226922,1750138232734,-153.0,0.000231,2]
[366226923,1750138232745,-158.9615139,0.000231,2]
[366226924,1750138232755,-574.1078115,0.000231,2]
[366226925,1750138232764,-153.0,0.000231,2]
[366226926,1750138232774,-574.1078115,0.000231,2]
[366226927,1750138232783,-158.9615139,0.000231,2]
[366226928,1750138232793,-177.1110308,0.000231,2]
[366226929,1750138232802,-153.0,0.000231,2]
[366226930,1750138232812,-306.0,0.000231,2]
[366226931,1750138232822,-158.9615139,0.000231,2]
[366226932,1750138232831,-177.1110308,0.000231,2]
[366226933,1750138232841,-1195.0223057,0.000231,2]
[366226934,1750138232850,-177.1110308,0.000231,2]
[366226935,1750138232859,-158.9615139,0.000231,2]
[366226936,1750138232869,-158.9615139,0.000231,2]
[366226937,1750138232878,-177.1110308,0.000231,2]
[366226938,1750138232889,-158.9615139,0.000231,2]
[366226939,1750138232899,-177.1110308,0.000231,2]
[366226940,1750138232908,-386.26694834,0.00023107,8]
[366226941,1750138232917,-149.35158572,0.00023176,8]
[366226942,1750138232930,-236.91536262,0.00023176,8]
[366226943,1750138232940,-164.08463738,0.00023226,2]
[366226948,1750138237689,-339.74877038,0.00022699,2]
[366226949,1750138237700,-500.0,0.00022699,2]
[366226950,1750138237712,-351.81498071,0.00023226,2]
[366226951,1750138237726,-3.91536262,0.00023226,2]
[366226952,1750138237736,-386.26694834,0.00023245,8]
[366226953,1750138237748,-676.50903985,0.00023263,2]
[366226954,1750138237760,-676.50903985,0.00023263,2]
[366226955,1750138237786,-676.50903985,0.00023263,2]
[366226956,1750138237798,-676.50903985,0.00023263,2]
[366226957,1750138237810,-676.50903985,0.00023263,2]
[366226958,1750138237822,-676.50903985,0.00023263,2]
[366226959,1750138237836,-676.50903985,0.00023263,2]
[366226960,1750138237854,-129.14170554,0.00023263,2]
[366226961,1750138237870,-547.36733431,0.00023263,2]
[366226962,1750138237881,-676.50903985,0.00023263,2]
[366226963,1750138237893,-41.64244208,0.00023263,2]
[366226964,1750138237907,-278.21992796,0.00023263,2]
[366226965,1750138237923,-356.64666981,0.00023263,2]
[366226966,1750138237935,-676.50903985,0.00023263,2]
[366226967,1750138237948,-676.50903985,0.00023263,2]
[366226968,1750138237959,-676.50903985,0.00023263,2]
[366226969,1750138237971,-676.50903985,0.00023263,2]
[366226970,1750138237985,-799.09724283,0.00023264,2]
[366226994,1750138240058,-1106.19109252,0.00023264,2]
[366227915,1750139201400,4303.22808555,0.0002,2]
[366227990,1750139432335,-2729.10888895,0.00020413,2]
[366227992,1750139432345,-1141.09,0.0002061,2]
[366227994,1750139432355,-500.0,0.00021122,2]
[366227996,1750139432365,-415.9010358,0.00021207,2]
[366227998,1750139432374,-763.0026678,0.0002146,2]
[366228000,1750139432384,-219.0541089,0.00021467,2]
[366228002,1750139432395,-853.0,0.00021746,2]
[366228004,1750139432406,-853.0,0.00021867,2]
[366228006,1750139432416,-300.0,0.00022177,2]
[366228008,1750139432426,-177.1110308,0.00022178,2]
[366228010,1750139432436,-158.9615139,0.00022178,2]
[366228012,1750139432446,-574.1078115,0.00022178,2]
[366228014,1750139432455,-153.0,0.00022178,2]
[366228016,1750139432465,-153.0,0.00022178,2]
[366228017,1750139432474,-168.0,0.00022325,2]
[366228019,1750139432483,-168.0,0.00022446,2]
[366228021,1750139432493,-197.5847232,0.00022448,2]
[366228023,1750139432502,-2282.17,0.00022484,2]
[366228025,1750139432512,-500.0,0.0002254,2]
[366228027,1750139432521,-438.45115379,0.0002254,2]
[366228029,1750139432531,-597.96228798,0.0002254,2]
[366228031,1750139432540,-500.0,0.0002254,2]
[366228033,1750139432549,-500.0,0.0002254,2]
[366228035,1750139432559,-500.0,0.0002254,2]
[366228037,1750139432569,-500.0,0.0002254,2]
[366228039,1750139432578,-500.0,0.0002254,2]
[366228040,1750139432588,-182.90844164,0.0002254,2]
[366228042,1750139432598,-444.16161089,0.0002254,2]
[366228044,1750139432607,-519.77443394,0.0002254,2]
[366228046,1750139432617,-434.03548901,0.0002254,2]
[366228047,1750139432627,-500.0,0.0002254,2]
[366228048,1750139432637,-500.0,0.0002254,2]
[366228049,1750139432646,-500.0,0.0002254,2]
[366228057,1750139432812,-628.61545513,0.0002254,2]
[366228059,1750139432824,-500.0,0.0002254,2]
[366228061,1750139432834,-500.0,0.0002254,2]
[366228063,1750139432843,-500.0,0.0002254,2]
[366228065,1750139432853,-500.0,0.0002254,2]
[366228067,1750139432863,-500.0,0.0002254,2]
[366228069,1750139432872,-250.0,0.0002254,2]
[366228070,1750139432882,-500.0,0.0002254,2]
[366228072,1750139432892,-500.0,0.0002254,2]
[366228074,1750139432901,-217.69550011,0.0002254,2]
[366228076,1750139432914,-500.0,0.0002254,2]
[366228078,1750139432923,-500.0,0.0002254,2]
[366228080,1750139432934,-233.84711246,0.0002254,2]
[366228082,1750139432944,-500.0,0.0002254,2]
[366228084,1750139432954,-500.0,0.0002254,2]
[366228086,1750139432964,-500.0,0.0002254,2]
[366228088,1750139432973,-413.62532505,0.0002254,2]
[366228090,1750139432984,-500.0,0.0002254,2]
[366228092,1750139432994,-500.0,0.0002254,2]
[366228093,1750139433004,-214.68261862,0.0002254,2]
[366228095,1750139433013,-300.0,0.00022541,2]
[366228097,1750139433023,-182.184,0.00022547,2]
[366228099,1750139433032,-160.0,0.00022548,2]
[366228100,1750139433042,-213.39869953,0.00022548,2]
[366228102,1750139433051,-500.0,0.00022548,2]
[366228104,1750139433061,-153.0,0.00022578,2]
[366228106,1750139433070,-177.1110308,0.00022578,2]
[366228108,1750139433080,-158.9615139,0.00022578,2]
[366228109,1750139433090,-574.1078115,0.00022578,2]
[366228111,1750139433100,-11722.60100637,0.00022595,2]
[366228113,1750139433109,-19365.68072147,0.00022595,2]
[366228115,1750139433119,-151.0,0.00022595,7]
[366228117,1750139433128,-151.0,0.00022595,7]
[366228119,1750139433139,-152.704049,0.00022595,7]
[366228121,1750139433149,-183.064613,0.00022596,7]
[366228123,1750139433159,-151.0,0.00022596,7]
[366228125,1750139433168,-234.827056,0.00022596,7]
[366228127,1750139433178,-154.631672,0.00022597,7]
[366228129,1750139433191,-163.405532,0.00022598,7]
[366228131,1750139433202,-151.0,0.00022598,7]
[366228133,1750139433213,-229.94211981,0.00022606,2]
[366228135,1750139433223,-845.62440851,0.00022606,2]
[366228137,1750139433233,-160.0,0.00022606,2]
[366228139,1750139433243,-424.62582665,0.00022606,2]
[366228140,1750139433252,-12540.12310952,0.00022606,2]
[366228142,1750139433264,-835.82910252,0.00022606,2]
[366228143,1750139433275,-427.17959954,0.00022617,2]
[366228144,1750139433285,-153.0,0.00022678,2]
[366228145,1750139433294,-427.17959955,0.00022801,2]
[366228146,1750139433304,-500.0,0.00022822,2]
[366228147,1750139433314,-151.0,0.00022847,2]
[366228148,1750139433323,-151.0,0.00022847,2]
[366228149,1750139433333,-1004.35436062,0.00022848,2]
[366228150,1750139433343,-151.0,0.00022848,7]
[366228151,1750139433353,-223.384744,0.00022848,7]
[366228152,1750139433363,-151.0,0.00022848,7]
[366228153,1750139433373,-151.0,0.00022848,7]
[366228154,1750139433382,-222.731738,0.00022848,7]
[366228155,1750139433392,-527.978465,0.00022848,7]
[366228156,1750139433402,-527.978465,0.00022848,7]
[366228157,1750139433412,-527.978465,0.00022848,7]
[366228158,1750139433422,-527.978465,0.00022848,7]
[366228159,1750139433432,-527.978465,0.00022848,7]
[366228160,1750139433442,-527.978465,0.00022848,7]
[366228161,1750139433452,-527.978465,0.00022848,7]
[366228162,1750139433462,-527.978465,0.00022848,7]
[366228163,1750139433472,-151.0,0.00022848,7]
[366228164,1750139433483,-151.0,0.00022848,7]
[366228165,1750139433493,-158.360643,0.00022848,7]
[366228166,1750139433504,-151.0,0.00022848,2]
[366228167,1750139433514,-151.0,0.00022848,2]
[366228168,1750139433525,-151.0,0.00022848,7]
[366228169,1750139433535,-279.838359,0.00022848,7]
[366228170,1750139433544,-500.0,0.00022856,2]
[366228171,1750139433554,-504.09252298,0.00022856,2]
[366228172,1750139433564,-406.5416821,0.00022856,2]
[366228173,1750139433574,-500.0,0.00022856,2]
[366228174,1750139433584,-235.65286901,0.00022856,2]
[366228175,1750139433594,-264.87364333,0.00022856,2]
[366228176,1750139433605,-549.61535981,0.00022856,2]
[366228177,1750139433614,-500.0,0.00022856,2]
[366228178,1750139433624,-500.0,0.00022856,2]
[366228179,1750139433635,-500.79683406,0.00022856,2]
[366228180,1750139433645,-284.1414189,0.00022878,2]
[366228181,1750139433655,-879.66920675,0.000229,8]
[366228182,1750139433667,-504.03301066,0.00022918,2]
[366228183,1750139433677,-500.0,0.00022918,2]
[366228184,1750139433686,-879.66920649,0.00022969,8]
[366228185,1750139433695,-500.84850324,0.00022975,2]
[366228187,1750139433705,-500.0,0.00022975,2]
[366228188,1750139433714,-504.93114512,0.00022975,2]
[366228190,1750139433728,-505.81065277,0.0002298,2]
[366228192,1750139433737,-168.0,0.00022998,2]
[366228194,1750139433747,-527.978465,0.00023025,7]
[366228196,1750139433756,-527.978465,0.00023025,7]
[366228198,1750139433766,-879.66920649,0.00023038,8]
[366228200,1750139433775,-151.0,0.00023062,2]
[366228201,1750139433785,-322.809814,0.00023064,14]
[366228203,1750139433794,-260.51832066,0.00023096,2]
[366228205,1750139433804,-879.66920649,0.00023107,8]
[366228207,1750139433814,-879.66920649,0.00023176,8]
[366228209,1750139433823,-879.66920649,0.00023245,8]
[366228211,1750139433833,-175.90749035,0.00023264,2]
[366228213,1750139433842,-158.79,0.00023304,3]
[366228215,1750139433852,-476.37,0.00023304,3]
[366228217,1750139433862,-151.0,0.00023305,7]
[366228219,1750139433872,-151.0,0.00023305,7]
[366228221,1750139433882,-151.0,0.00023306,7]
[366228223,1750139433893,-151.0,0.00023307,7]
[366228224,1750139433903,-151.0,0.00023307,2]
[366228226,1750139433916,-151.0,0.00023307,2]
[366228228,1750139433926,-609.92528467,0.00023307,2]
[366228230,1750139433936,-5000.0,0.00023307,2]
[366228232,1750139433946,-151.0,0.00023307,2]
[366228234,1750139433956,-160.78070245,0.00023307,2]
[366228236,1750139433966,-1703.55011971,0.00023307,2]
[366228238,1750139433975,-1379.95989952,0.00023307,2]
[366228240,1750139433985,-500.0,0.00023307,2]
[366228242,1750139433996,-500.0,0.00023307,2]
[366228244,1750139434006,-500.0,0.00023307,2]
[366228246,1750139434016,-500.0,0.00023307,2]
[366228248,1750139434025,-500.0,0.00023307,2]
[366228250,1750139434035,-500.0,0.00023307,2]
[366228252,1750139434044,-500.0,0.00023307,2]
[366228254,1750139434054,-500.0,0.00023307,2]
[366228256,1750139434063,-500.0,0.00023307,2]
[366228257,1750139434072,-500.0,0.00023307,2]
[366228259,1750139434082,-500.0,0.00023307,2]
[366228261,1750139434092,-500.0,0.00023307,2]
[366228263,1750139434101,-500.0,0.00023307,2]
[366228265,1750139434111,-500.0,0.00023307,2]
[366228267,1750139434120,-500.0,0.00023307,2]
[366228269,1750139434130,-500.0,0.00023307,2]
[366228271,1750139434140,-500.0,0.00023307,2]
[366228273,1750139434150,-500.0,0.00023307,2]
[366228275,1750139434160,-500.0,0.00023307,2]
[366228277,1750139434169,-207.4,0.00023307,2]
[366228279,1750139434179,-500.0,0.00023307,2]
[366228281,1750139434189,-500.0,0.00023307,2]
[366228283,1750139434198,-500.0,0.00023307,2]
[366228285,1750139434209,-500.0,0.00023307,2]
[366228286,1750139434219,-500.0,0.00023307,2]
[366228288,1750139434228,-500.0,0.00023307,2]
[366228290,1750139434240,-500.0,0.00023307,2]
[366228292,1750139434250,-500.0,0.00023307,2]
[366228294,1750139434259,-500.0,0.00023307,2]
[366228296,1750139434269,-500.0,0.00023307,2]
[366228298,1750139434278,-500.0,0.00023307,2]
[366228300,1750139434287,-879.66920649,0.00023314,9]
[366228302,1750139434297,-500.0,0.00023314,2]
[366228304,1750139434307,-687.4803168,0.00023334,2]
[366228306,1750139434316,-168.0,0.00023336,2]
[366228308,1750139434326,-635.15,0.0002338,3]
[366228310,1750139434335,-879.66920649,0.00023383,9]
[366228312,1750139434345,-1270.3,0.0002339,3]
[366228314,1750139434354,-527.978465,0.000234,7]
[366228315,1750139434364,-527.978465,0.000234,7]
[366228317,1750139434374,-715.031187,0.00023401,3]
[366228319,1750139434384,-520.66386533,0.00023404,2]
[366228321,1750139434394,-1002.75230945,0.00023404,2]
[366228323,1750139434404,-511.62475922,0.00023404,2]
[366228325,1750139434414,-879.66920649,0.00023452,9]
[366228327,1750139434425,-1018.96624797,0.00023466,2]
[366228329,1750139434435,-1000.0,0.000235,2]
[366228331,1750139434445,-879.66920649,0.00023521,9]
[366228333,1750139434454,-687.4803168,0.00023523,2]
[366228335,1750139434464,-1000.0,0.00023523,2]
[366228337,1750139434474,-168.0,0.00023555,2]
[366228339,1750139434484,-317.58,0.00023563,3]
[366228341,1750139434493,-229.12573105,0.00023573,2]
[366228343,1750139434503,-879.66920649,0.0002359,9]
[366228345,1750139434514,-879.66920649,0.00023659,9]
[366228347,1750139434524,-197.5847232,0.00023662,2]
[366228349,1750139434534,-160.0,0.00023687,2]
[366228351,1750139434544,-55720.37757,0.00023688,2]
[366228353,1750139434553,-3024.08,0.00023689,3]
[366228355,1750139434563,-151.0,0.00023689,7]
[366228357,1750139434573,-527.978465,0.00023689,7]
[366228359,1750139434582,-527.978465,0.00023689,7]
[366228361,1750139434591,-12540.12310952,0.00023689,7]
[366228362,1750139434601,-687.4803168,0.00023711,2]
[366228364,1750139434611,-879.66920649,0.00023728,9]
[366228366,1750139434620,-879.66920649,0.00023797,9]
[366228368,1750139434630,-151.0,0.00023855,7]
[366228370,1750139434640,-5000.0,0.00023855,2]
[366228372,1750139434650,-234.61678504,0.00023855,2]
[366228374,1750139434659,-879.66920649,0.00023866,10]
[366228376,1750139434669,-160.565949,0.000239,7]
[366228378,1750139434678,-151.0,0.000239,7]
[366228380,1750139434688,-527.978465,0.000239,7]
[366228382,1750139434697,-527.978465,0.000239,7]
[366228384,1750139434707,-687.4803168,0.000239,2]
[366228386,1750139434716,-8996.25757195,0.000239,2]
[366228388,1750139434725,-600.0,0.00023934,2]
[366228390,1750139434735,-879.66920649,0.00023934,10]
[366228392,1750139434744,-964.0,0.00023954,2]
[366228394,1750139434753,-151.0,0.00023973,7]
[366228396,1750139434763,-2203.43246263,0.00023973,2]
[366228398,1750139434772,-508.16,0.00023976,3]
[366228399,1750139434781,-1000.0,0.00024,24]
[366228401,1750139434791,-135315.38229901,0.00024,2]
[366228405,1750139434813,-4891.40534829,0.00024,2]
[366228407,1750139434824,-48167.81303821,0.00024,2]
[366228409,1750139434836,-4233.78967313,0.00024,2]
[366228411,1750139434847,-1061.26923766,0.00024,2]
[366228442,1750139437978,-303.56164514,0.00022594,2]
[366228444,1750139437990,-1056.22590191,0.00022594,2]
[366228446,1750139437999,-1056.22590191,0.00022594,2]
[366228448,1750139438009,-1056.22590191,0.00022594,2]
[366228450,1750139438019,-1056.22590191,0.00022594,2]
[366228452,1750139438029,-1056.22590191,0.00022594,2]
[366228454,1750139438038,-1056.22590191,0.00022594,2]
[366228456,1750139438048,-1056.22590191,0.00022594,2]
[366228458,1750139438057,-1056.22590191,0.00022594,2]
[366228460,1750139438067,-1056.22590191,0.00022594,2]
[366228462,1750139438230,-1056.22590191,0.00022594,2]
[366228463,1750139438241,-1056.22590191,0.00022594,2]
[366228464,1750139438252,-1056.22590191,0.00022594,2]
[366228465,1750139438261,-1056.22590191,0.00022594,2]
[366228466,1750139438270,-1056.22590191,0.00022594,2]
[366228467,1750139438280,-1056.22590191,0.00022594,2]
[366228468,1750139438294,-500.0,0.00022598,2]
[366228469,1750139438304,-380.85424958,0.00023146,3]
[366228470,1750139438314,-48301.57300898,0.00024,2]
[366228471,1750139438330,-476.46081799,0.00024,2]
[366228505,1750139440216,-354.76119116,0.00024,2]
[366228512,1750139440272,-1427.92528467,0.00024,2]
[366228514,1750139440284,-1405.32536251,0.00024,2]
[366228790,1750139443144,-160.46240121,0.00022539,2]
[366228792,1750139443154,-357.52172224,0.00022539,2]
[366228794,1750139443164,-190.52029096,0.00022539,2]
[366228796,1750139443173,-11.69398263,0.00022539,2]
[366229058,1750139446092,-238.30601737,0.00022539,2]
[366229060,1750139446103,-850.53980523,0.00022594,2]
[366229062,1750139446115,-171.74366126,0.00022594,2]
[366229217,1750139655909,163.0,0.0002,2]
[366229223,1750140223933,2000.0,0.00021917,60]
[366229259,1750140632346,-1097.52,0.00020632,2]
[366229260,1750140632357,-158.27970828,0.00021022,3]
[366229261,1750140632367,-500.0,0.00021122,2]
[366229262,1750140632378,-666.0,0.00021275,2]
[366229263,1750140632388,-300.0,0.00021572,2]
[366229264,1750140632398,-13457.78326,0.00021573,2]
[366229265,1750140632408,-207.4,0.00022383,2]
[366229266,1750140632419,-163.0,0.000225,3]
[366229268,1750140632429,-163.0,0.000225,3]
[366229269,1750140632439,-2195.04,0.00022508,2]
[366229270,1750140632449,-209.454,0.00022606,2]
[366229271,1750140632460,-500.0,0.00022611,2]
[366229272,1750140632470,-500.0,0.00022611,2]
[366229273,1750140632480,-500.0,0.00022611,2]
[366229274,1750140632490,-500.0,0.00022611,2]
[366229275,1750140632499,-500.0,0.00022611,2]
[366229278,1750140632510,-500.0,0.00022611,2]
[366229279,1750140632520,-500.0,0.00022611,2]
[366229280,1750140632530,-228.14077828,0.00022611,2]
[366229282,1750140632540,-500.0,0.00022611,2]
[366229284,1750140632550,-500.0,0.00022611,2]
[366229286,1750140632561,-500.0,0.00022611,2]
[366229287,1750140632571,-500.0,0.00022611,2]
[366229288,1750140632581,-500.0,0.00022611,2]
[366229289,1750140632591,-500.0,0.00022611,2]
[366229290,1750140632601,-500.0,0.00022611,2]
[366229291,1750140632611,-500.0,0.00022611,2]
[366229292,1750140632622,-500.0,0.00022611,2]
[366229293,1750140632632,-533.07504501,0.00022611,2]
[366229294,1750140632643,-217.01663067,0.00022611,2]
[366229295,1750140632654,-500.0,0.00022611,2]
[366229296,1750140632664,-500.0,0.00022611,2]
[366229297,1750140632674,-500.0,0.00022611,2]
[366229298,1750140632684,-500.0,0.00022611,2]
[366229299,1750140632694,-6662.25278868,0.00022612,7]
[366229300,1750140632704,-6662.25278868,0.00022612,7]
[366229301,1750140632715,-424.62582665,0.00022626,2]
[366229302,1750140632726,-229.94211981,0.00022626,2]
[366229303,1750140632739,-835.82910252,0.00022626,2]
[366229304,1750140632750,-160.0,0.00022626,2]
[366229305,1750140632760,-500.0,0.0002266,2]
[366229306,1750140632771,-415.08482385,0.000229,8]
[366229307,1750140632781,-415.08482368,0.00022969,8]
[366229308,1750140632791,-415.08482368,0.00023038,8]
[366229309,1750140632801,-415.08482368,0.00023107,8]
[366229310,1750140632812,-415.08482368,0.00023176,8]
[366229311,1750140632823,-415.08482368,0.00023245,8]
[366229312,1750140632833,-29.1276441,0.00023314,9]
[366229313,1750140632855,-385.95717958,0.00023314,9]
[366229314,1750140632866,-500.0,0.00023314,2]
[366229315,1750140632875,-156.8421927,0.00023315,2]
[366229316,1750140632885,-158.1932151,0.00023315,2]
[366229317,1750140632896,-594.8296712,0.00023315,2]
[366229318,1750140632905,-163.6583967,0.00023315,2]
[366229319,1750140632915,-415.08482368,0.00023383,9]
[366229320,1750140632925,-420.0,0.00023451,2]
[366229321,1750140632935,-415.08482368,0.00023452,9]
[366229322,1750140632945,-415.08482368,0.00023521,9]
[366229323,1750140632955,-415.08482368,0.0002359,9]
[366229324,1750140632966,-415.08482368,0.00023659,9]
[366229325,1750140632976,-415.08482368,0.00023728,9]
[366229326,1750140632985,-215.0738,0.00023752,2]
[366229327,1750140632996,-415.08482368,0.00023797,9]
[366229328,1750140633006,-415.08482368,0.00023866,10]
[366229329,1750140633021,-171.87007921,0.000239,2]
[366229330,1750140633031,-5997.50504796,0.000239,2]
[366229331,1750140633042,-415.08482368,0.00023934,10]
[366229332,1750140633054,-5000.0,0.0002397,2]
[366229333,1750140633064,-500.0,0.0002397,2]
[366229334,1750140633075,-500.0,0.0002397,2]
[366229335,1750140633085,-500.0,0.0002397,2]
[366229336,1750140633096,-500.0,0.0002397,2]
[366229337,1750140633105,-500.0,0.0002397,2]
[366229338,1750140633115,-500.0,0.0002397,2]
[366229339,1750140633125,-500.0,0.0002397,2]
[366229340,1750140633135,-500.0,0.0002397,2]
[366229341,1750140633146,-500.0,0.0002397,2]
[366229342,1750140633156,-500.0,0.0002397,2]
[366229343,1750140633167,-500.0,0.0002397,2]
[366229344,1750140633177,-500.0,0.0002397,2]
[366229345,1750140633187,-500.0,0.0002397,2]
[366229346,1750140633197,-500.0,0.0002397,2]
[366229347,1750140633209,-514.42399439,0.0002397,2]
[366229348,1750140633220,-502.53226813,0.00023973,2]